Cogmind - Beta 13 X1 @@@ ROGUE MODE // 2023.06.25 @ 13:59:23 Player: MTF Result: Destroyed by 2R-FBO(R) with Subdweller Machine Gun Performance ------------- Evolutions (0) 0 Regions Visited (2) 400 Robots Destroyed (22) 110 Value Destroyed (545) 545 Prototype IDs (2) 40 Alien Tech Used (0) 0 Bonus (0) 0 TOTAL SCORE: 1095 Bonus ------- None Cogmind --------- Core Integrity 0/250 Matter 300/300 Energy 188/200 System Corruption 0% Temperature Cool (0) Movement Treading (160) Location -10/Subcaves Parts ------- > --- POWER (1) -------- Subdweller Power Source > --- PROPULSION (2) --- Light Treads > --- UTILITY (2) ------ (None) > --- WEAPON (2) ------- Beam Cannon > --- INVENTORY (5) ---- Light Treads Disposable Heat Sink Huge Storage Unit Signal Interpreter Peak State ------------ > --- POWER ------------ Subdweller Power Source > --- PROPULSION ------- Light Treads Subdweller Monowheel > --- UTILITY ---------- Scrap Shield > --- WEAPON ----------- Beam Cannon Light Cannon > --- INVENTORY -------- Light Treads Huge Storage Unit Signal Interpreter Beam Cannon Light Cannon [Rating: 11] Favorites ----------- Power Light Ion Engine Engine Light Ion Engine Propulsion Light Treads Treads Light Treads Leg Aluminum Leg Wheel Subdweller Monowheel Utility High-capacity Storage Unit Device Seismic Detector Storage High-capacity Storage Unit Protection Light Armor Plating Weapon Light Cannon Energy Gun Medium Laser Energy Cannon Beam Cannon Ballistic Gun Assault Rifle Ballistic Cannon Light Cannon Special Melee Weapon Datajack Build | -11 -10 -10 ------- Run | Jun Mat Sub Slots Evolved . | . . . Power . | . . . Propulsion . | . . . Utility . | . . . Weapon . | . . . Parts Attached 25 | 1 16 8 Power 4 | . 1 3 Engine 4 | . 1 3 Core . | . . . Reactor . | . . . Propulsion 7 | . 5 2 Treads 5 | . 4 1 Leg 1 | . 1 . Wheel 1 | . . 1 Hover . | . . . Flight . | . . . Utility 4 | 1 2 1 Device 1 | 1 . . Storage 1 | . 1 . Processor . | . . . Hackware . | . . . Protection 2 | . 1 1 Artifact . | . . . Weapon 10 | . 8 2 Energy Gun 3 | . 2 1 Energy Cannon 3 | . 2 1 Ballistic Gun 1 | . 1 . Ballistic Cannon 2 | . 2 . Launcher . | . . . Special Weapon . | . . . Impact Weapon . | . . . Slashing Weapon . | . . . Piercing Weapon . | . . . Special Melee Weapon 1 | . 1 . Unidentified Prototypes . | . . . Parts Lost 6 | . 1 5 Power 1 | . . 1 Propulsion 1 | . . 1 Utility 1 | . . 1 Weapon 3 | . 1 2 Highest Loss Streak 4 | . 1 4 To Critical Strikes . | . . . Average Slot Usage (%) 96 | . 99 85 Engine 13 | . 14 13 Treads 25 | . 24 28 Leg 2 | . 3 . Device 1 | . 1 . Storage 11 | . 14 . Protection 12 | . 12 13 Energy Gun 6 | . 7 4 Energy Cannon 5 | . 4 9 Ballistic Gun 7 | . 9 . Ballistic Cannon 7 | . 5 14 Naked Turns . | . . . Heaviest Build 52 | 13 52 52 Greatest Support 40 | 20 40 40 Greatest Overweight (x) 2 | . 2 1 Average Overweight (x) . | . . . Largest Inventory Capacity 20 | 8 20 20 Average Capacity 16 | 8 19 5 Most Carried 20 | 6 20 20 Average Carried 9 | 5 11 5 Final Capacity 20 | 8 20 5 Final Carried 20 | 4 20 4 Class Distribution -------------------- 92% | Mutant 7% | Subdweller-Mutant Dominant Class ---------------- Mutant | -10/Materials Mutant | -10/Subcaves Resources | -11 -10 -10 ----------- Run | Jun Mat Sub Matter Collected 701 | 216 306 179 Remotely . | . . . Salvage Created 975 | 101 663 211 Parts 46 | 6 24 16 Haulers Intercepted 2 | . 2 . Recyclers Shooed 2 | . 2 . Parts Field Recycled . | . . . Retrieved Matter . | . . . Parts Self-Destructed 12 | . . 12 Prevented . | . . . Kills | -11 -10 -10 ------- Run | Jun Mat Sub Combat Hostiles Destroyed 14 | . 9 5 Guns 10 | . 8 2 Cannons 3 | . . 3 AOE 1 | . 1 . Classes Destroyed 7 | 2 4 1 Tunneler 1 | 1 . . Hauler 2 | . 2 . Recycler 3 | 1 2 . Watcher 2 | . 2 . Swarmer 2 | . 2 . Grunt 7 | . 7 . Subdweller 5 | . . 5 Best Kill Streak 4 | 2 3 4 Combat Bots Only 4 | . 2 4 Max Kills in Single Turn 1 | 1 1 1 Gunslinging . | . . . Exploded 1 | . 1 . Melee . | . . . Uniques/NPCs Destroyed . | . . . Combat | -11 -10 -10 -------- Run | Jun Mat Sub Damage Taken 1599 | . 586 1013 Core 267 | . 119 148 Absorbed by Shields . | . . . Regen/Repaired (Parts) 138 | . 138 . Core Remaining (%) 100 | 100 . . Volleys Fired 95 | 2 50 43 Largest 2 | 2 2 2 Hottest 95 | 70 95 95 Shots Fired 170 | 4 100 66 Gun 127 | 4 98 25 Cannon 43 | . 2 41 Launcher . | . . . Special . | . . . Kinetic 84 | 2 50 32 Thermal 79 | 2 43 34 Explosive . | . . . Electromagnetic 7 | . 7 . Robot Hit Streak 11 | 3 11 7 Robot Miss Streak 2 | . 2 2 Penetration Max . | . . . Secondary Targets 3 | . 3 . Max Gunslinging Chain 1 | . 1 . Shots Hit Robots 104 | 3 70 31 Core Hits 38 | 2 26 10 Critical Kills 1 | . . 1 Critical Parts Destroyed 1 | . 1 . Critical Strikes 6 | . 4 2 Burn 3 | . 3 . Destroy 2 | . 1 1 Blast 1 | . . 1 Melee Attacks . | . . . Impact . | . . . Slashing . | . . . Piercing . | . . . Sneak Attacks . | . . . Combat Hostiles . | . . . Follow-up Attacks . | . . . Damage Inflicted 1419 | 39 889 491 Guns 1153 | 39 887 227 Cannons 263 | . . 263 Explosions . | . . . Melee . | . . . Ramming 3 | . 2 1 Kinetic 698 | 26 444 228 Thermal 650 | 13 375 262 Explosive . | . . . Electromagnetic 68 | . 68 . Impact . | . . . Slashing . | . . . Piercing . | . . . Highest Corruption . | . . . Average Corruption . | . . . Corruption Purged . | . . . Corruption Blocked . | . . . Overload Shots . | . . . Overflow Damage . | . . . Projectiles . | . . . Explosions . | . . . Melee . | . . . Knockbacks 3 | . . 3 Impact . | . . . Kinetic 3 | . . 3 Secondary . | . . . Self-Inflicted Damage . | . . . Shots . | . . . Rammed 2 | . 1 1 Targets Rammed 2 | . 1 1 Kicked . | . . . Crushed . | . . . Highest Temperature 357 | 9 357 . Average Temperature 92 | 6 94 . Received Heat Transfer 393 | . 297 96 Effects 2 | . 2 . Energy Bleed 2 | . 2 . Siege Activations . | . . . Robots Corrupted . | . . . Combat Hostiles . | . . . Parts Fried . | . . . Impact Corruptions . | . . . Robots Melted . | . . . Combat Hostiles . | . . . Parts Melted 2 | . 1 1 Heat Transferred 1718 | 37 1332 349 Parts Sabotaged . | . . . Parts Stolen . | . . . Parts Stripped . | . . . Power Chain Reactions . | . . . Missiles Intercepted . | . . . Alert | -11 -10 -10 ------- Run | Jun Mat Sub Peak Influence 187 | 10 187 . Initial 6 | . 6 . Average 35 | 9 35 . Maximum Alert Level . | . . . Low Security (%) 100 | 100 100 . Level 1 . | . . . Level 2 . | . . . Level 3 . | . . . Level 4 . | . . . Level 5 . | . . . High Security . | . . . Max Security . | . . . Squads Dispatched 2 | . 2 . Investigation 1 | . 1 . Extermination . | . . . Reinforcement 1 | . 1 . Assault . | . . . Garrison . | . . . Intercept . | . . . Searches Triggered . | . . . Construction Impeded . | . . . Haulers Reinforced . | . . . Active Scanning Responses . | . . . Cargo Convoy Interrupts . | . . . Stealth | -11 -10 -10 --------- Run | Jun Mat Sub Distress Signals 1 | . 1 . Communications Jammed . | . . . Distress Signals . | . . . Times Spotted 27 | . 13 14 Peak Tracking Total 8 | . 5 8 Tactical Retreats . | . . . Traps | -11 -10 -10 ------- Run | Jun Mat Sub Traps Triggered 2 | . 2 . Indirectly . | . . . Trap Hack Attempts 20 | . 20 . Triggered . | . . . Disarmed . | . . . Reprogrammed 1 | . 1 . Reused . | . . . Traps Extracted . | . . . Installed . | . . . Triggered . | . . . Machines | -11 -10 -10 ---------- Run | Jun Mat Sub Machines Disabled . | . . . Max in Single Turn . | . . . Machines Repaired . | . . . Machines Sabotaged . | . . . Overloaded Fab Kills . | . . . Hacking | -11 -10 -10 --------- Run | Jun Mat Sub Machines Accessed 10 | . 10 . Terminals 7 | . 7 . Fabricators . | . . . Repair Stations 1 | . 1 . Recycling Units 2 | . 2 . Scanalyzers . | . . . Garrison Access . | . . . Total Hacks 23 | . 23 . Successful 12 | . 12 . Failed 11 | . 11 . Catastrophic 3 | . 3 . Database Lockouts . | . . . Manual 8 | . 8 . Terminals 12 | . 12 . Fabricators . | . . . Repair Stations 6 | . 6 . Recycling Units 5 | . 5 . Scanalyzers . | . . . Garrison Access . | . . . Terminal Hacks 4 | . 4 . Robot Analysis 2 | . 2 . Prototype ID Bank 1 | . 1 . Locate Traps 1 | . 1 . Fabricator Hacks . | . . . Repair Station Hacks 5 | . 5 . Scan Component 3 | . 3 . Repair 2 | . 2 . Recycling Unit Hacks 2 | . 2 . Retrieve Components 2 | . 2 . Scanalyzer . | . . . Garrison Access Hacks . | . . . Unauthorized Hacks 1 | . 1 . Terminals . | . . . Fabricators . | . . . Repair Stations . | . . . Recycling Units 1 | . 1 . Reject 1 | . 1 . Scanalyzers . | . . . Garrison Access . | . . . Data Cores Recovered . | . . . Used . | . . . Hacking Detections 10 | . 10 . Full Trace Events . | . . . Feedback Events . | . . . Feedback Blocked . | . . . Robot Schematics Acquired . | . . . Robots Built . | . . . Authchips . | . . . Time . | . . . Total Robot Build Rating . | . . . Part Schematics Acquired . | . . . Parts Built . | . . . Authchips . | . . . Time . | . . . Total Part Build Rating . | . . . Parts Repaired 2 | . 2 . Time 52 | . 52 . Parts Recycled . | . . . Recycled Matter . | . . . Retrieved Matter . | . . . Retrieved Components 16 | . 16 . Parts Scanalyzed . | . . . Part Schematics Acquired . | . . . Parts Damaged . | . . . Bothacking | -11 -10 -10 ------------ Run | Jun Mat Sub Used RIF Installer . | . . . Robots Hacked . | . . . Non-combat . | . . . Combat . | . . . Robot Hacks Applied . | . . . Relay Couplers Released . | . . . Fabnet Peak Effective % . | . . . Robots Rewired . | . . . Allies Hacked . | . . . Hacks Repelled . | . . . Allies | -11 -10 -10 -------- Run | Jun Mat Sub Total Allies . | . . . Largest Group . | . . . Highest-Rated Group . | . . . Highest-Rated Ally . | . . . Total Orders . | . . . Ally Attacks . | . . . Total Damage . | . . . Kills . | . . . Allies Corrupted . | . . . Allies Melted 1 | . . 1 Intel | -11 -10 -10 ------- Run | Jun Mat Sub Robot Analysis Total 2 | . 2 . Derelict Logs Recovered . | . . . Drone Launches . | . . . Drone Recoveries . | . . . Exploration | -11 -10 -10 ------------- Run | Jun Mat Sub Turns Passed 2286 | 35 1773 478 Spaces Moved 867 | 23 635 209 Core . | . . . Treads 765 | . 556 209 Legs 102 | 23 79 . Wheels . | . . . Hover . | . . . Flight . | . . . Fastest Speed 120 | 120 120 160 Average Speed 211 | 120 231 161 Slowest Speed 260 | 120 260 240 Overloaded Moves . | . . . Propulsion Burnouts . | . . . Robots Hopped . | . . . Cave-ins Triggered . | . . . Exploration Rate (%) 37 | 3 99 9 Regions Visited 2 Branch Regions 1 Pre-discovered Areas . | . . . Known Exits Taken . | . . . Unknown Exits Taken 2 | 1 1 . Scrap Searched . | . . . Spaces Dug . | . . . Terrain Destroyed . | . . . Melee . | . . . Projectile . | . . . AOE . | . . . Terrain Rammed . | . . . Walls Destroyed . | . . . Machines Disabled . | . . . Actions | -11 -10 -10 --------- Run | Jun Mat Sub Total 1152 | 27 836 289 Wait 92 | . 89 3 Move 865 | 22 634 209 Hop . | . . . Pick Up 29 | . 20 9 Fast Attach 11 | 1 5 5 Attach 6 | . 4 2 Detach . | . . . Swap 8 | . 7 1 Drop 22 | 2 6 14 Fire 95 | 2 50 43 Melee . | . . . Ram . | . . . Kick . | . . . Crush 2 | . 1 1 Escape Stasis . | . . . Rewire . | . . . Trap 20 | . 20 . Miscellaneous 2 | . . 2 Route ------- -11/Junkyard -10/Materials (discovered 6 exits: [*Mat x3] / [*Min x2] / [*Sub]) -10/Subcaves History --------- Turn | Location | Event 8 | -11/Junkyard | Discovered new exit (range 3) 36 | -11/Junkyard | Entered Materials 66 | -10/Materials | Discovered new exit (range 5) 315 | -10/Materials | Build established: Mutant 348 | -10/Materials | Discovered new exit (range 8) 600 | -10/Materials | Derelicts attacked the area 701 | -10/Materials | Discovered new exit (range 16) 1369 | -10/Materials | Discovered new exit (range 15) 1557 | -10/Materials | Discovered new exit (range 13) 1615 | -10/Materials | Discovered new exit (range 10) 1705 | -10/Materials | Repaired Lgt. Treads 1733 | -10/Materials | Repaired Lgt. Treads 1809 | -10/Materials | Entered Subcaves 1869 | -10/Subcaves | A swath of the cavern ceiling suddenly collapsed 2190 | -10/Subcaves | Ambushed by swarm of Subdwellers 2190 | -10/Subcaves | Ambushed by Subdwellers from Twisted Machinery 2196 | -10/Subcaves | Ambushed by Subdwellers from Twisted Machinery 2198 | -10/Subcaves | Core integrity fell below 50% 2277 | -10/Subcaves | Core integrity fell below 20% 2287 | -10/Subcaves | Destroyed by 2R-FBO(R) with Subdweller Machine Gun Last Messages --------------- 02207_ Sub. Power Source destroyed. 02208_ KP-QOS(R) destroyed. 02213_ Acquired Sub. Power Source. 02214_ UC-X83(R) knocked back. 02223_ CH-ZXK(R) suffers critical hit (Destroy). 02223_ Sub. Power Source melted. 02223_ CH-ZXK(R) destroyed. 02224_ Acquired 50 matter. 02228_ Scrap Shield Fragment affixed to Scrap Shield (+44). 02229_ Acquired 10 matter. 02234_ Scrap Shield Fragment affixed to Scrap Shield (+43). 02258_ UC-X83(R) destroyed. 02264_ Sub. Laser destroyed. 02270_ OV-6C2(R) knocked back. 02274_ Scrap Shield destroyed. 02275_ DH-PIF(R) affixes Scrap Shield Fragment to Scrap Shield. 02281_ Lgt. Cannon destroyed. 02282_ Slammed into 2R-FBO(R). 02282_ Lgt. Treads destroyed. 02283_ Acquired 22 matter. Map ----- +----------------------------------------------------+ | ?????????????????????????????????????????????????? | | ?????????????????????????????????????????????????? | | ?????????????????????????????????????????????????? | | ?????????????????????????????????????????????????? | | ?????????????????????????????????????????????????? | | ?????????????????????????????????????????????????? | | ?????????????????????????????????????????????????? | | ?????????????????????????????????????????????????? | | ?????????????????????????????????????????????????? | | ?????????????????????????????????????????????????? | | ?????????????????????????????????????????????????? | | ?????????????????????????????????????????????????? | | ?????????????????????????????????????????????????? | | ?????????????????????????????????????????????????? | | ?????????????????????????????????????????????????? | | ?????????????????????????????????????????????????? | | ?????????????????????????????????????????????????? | | ?????????????????????????????????????????????????? | | ???????????????#########?????????????????????????? | | ?????????????### %! #%##????????????????????????? | | ????????????## " ! =%%"##???????????????????????? | | ????????????# #" !]##!*!###?????????????????????? | | ????????????# ######= % "%###???????????????????? | | ????????????#""##???# = R #???????????????????? | | ????????????#" "######% "R ##???????????????????? | | ????????????# """"## ## @ =R#???????????????????? | | ?????????????#"""" ##?###[%##???????????????????? | | ?????????????#"% ###????#=[[#???????????????????? | | ?????????????#"]&##??????#%R##???????????????????? | | ?????????????##]&#???????#!%!#???????????????????? | | ??????????????# =#???????#! #???????????????????? | | ?????????????## &###????##%[##???????????????????? | | ?????????????# *& "###### &&##???????????????????? | | ?????????????## &= ## # # #???????????????????? | | ??????????????# % ##???????????????????? | | ??????????????### " % ##??????????????????? | | ????????????????## % ## #??????????????????? | | ?????????????????######## ##??????????????????? | | ????????????????????????## #?##????????????????? | | ????????????????????????## ## #????????????????? | | ????????????????????????# #????????????????? | | ???????????????????###?## ##????????????????? | | ???????????????????# ### ##????????????????? | | ???????????????????## #????????????????? | | ???????????????????# ### #????????????????? | | ???????????????????## ##?## ##???????????????? | | ????????????###????# ## ## #???????????????? | | ????????????# ##??### ##???????????????? | | ????????????#/[#### ### # #????????????????? | | ????????????#[[=## #"### ##????????????????? | +----------------------------------------------------+ Best States ------------- Heat Dissipation 25 Energy Generation 15 Energy Capacity 250 Matter Stores 300 Matter Capacity 300 Sight Range 16 Terrain Scan Density 10 Armor Coverage 800 Evasion (%) 55 Recoil Reduction 2 Item Schematics ----------------- None Robot Schematics ------------------ None Fabricated ------------ Nothing Alien Tech Used ----------------- None Achievements -------------- None Challenges ------------ None Game ------ Seed ParticleRecyclingRedirector Manual? 0 Play Time 00:28:45 Cumulative 1352.8 hours Start 2023.06.25 @ 13:07:30 End 2023.06.25 @ 13:59:23 Sessions 1 Manual Loads 0 Difficulty Rogue Special Mode None Game No. 400 Rogue 400 Adventurer 0 Explorer 0 Win Type - Total 78 Types 13/18/15/3/1/2/22/2/2 Lore% 92 Gallery% 94 Achievement% 88 Wizard Run 0 Options --------- ASCII 0 Keyboard 0 Movement Numpad Keybinds 0 Fullscreen 2 Font 24/Smallcaps Map View 76x50 Tactical HUD 1 Map Filters NONE Filters NONE Steam 1 RUN: 39a472c4-2e0d-46a2-91f8-a4ec3eba599c